fUST/lending_fUST_20241205
["ID","MTS","AMOUNT","RATE_DAILY","PERIOD"]
[344342598,1733356246114,-500.0,0.00025753,7]
[344342599,1733356246123,-556.27709723,0.00025753,7]
[344342600,1733356246133,-500.0,0.00025753,7]
[344342601,1733356246142,-500.0,0.00025753,7]
[344342602,1733356246152,-500.0,0.00025753,7]
[344342603,1733356246161,-500.0,0.00025753,7]
[344342604,1733356246170,-500.0,0.00025753,7]
[344342605,1733356246179,-500.0,0.00025753,7]
[344342606,1733356246192,-500.0,0.00025753,7]
[344342607,1733356246202,-500.0,0.00025753,7]
[344342608,1733356246211,-500.0,0.00025753,7]
[344342609,1733356246220,-500.0,0.00025753,7]
[344342610,1733356246230,-500.0,0.00025753,7]
[344342611,1733356246239,-500.0,0.00025753,7]
[344342612,1733356246249,-500.0,0.00025753,7]
[344342613,1733356246259,-500.0,0.00025753,7]
[344342614,1733356246271,-243.51545723,0.00025753,7]
[344342615,1733356246282,-718.25,0.00025753,7]
[344342616,1733356246291,-500.0,0.00025753,7]
[344342617,1733356246303,-500.0,0.00025753,7]
[344342618,1733356246313,-500.0,0.00025753,7]
[344342619,1733356246322,-500.0,0.00025753,7]
[344342620,1733356246331,-500.0,0.00025753,7]
[344342621,1733356246341,-500.0,0.00025753,7]
[344342622,1733356246350,-503.65,0.00025753,7]
[344342623,1733356246360,-500.0,0.00025753,7]
[344342624,1733356246369,-500.0,0.00025753,7]
[344342625,1733356246379,-500.0,0.00025753,7]
[344342626,1733356246389,-500.0,0.00025753,7]
[344342627,1733356246398,-500.0,0.00025753,7]
[344342628,1733356246407,-500.0,0.00025753,7]
[344342629,1733356246417,-500.0,0.00025753,7]
[344342630,1733356246426,-500.0,0.00025753,7]
[344342631,1733356246435,-500.0,0.00025753,7]
[344342632,1733356246445,-500.0,0.00025753,7]
[344342633,1733356246454,-500.0,0.00025753,7]
[344342634,1733356246463,-500.0,0.00025753,7]
[344342635,1733356246474,-500.0,0.00025753,7]
[344342636,1733356246483,-500.0,0.00025753,7]
[344342637,1733356246493,-614.53,0.00025753,7]
[344342638,1733356246503,-500.0,0.00025753,7]
[344342639,1733356246513,-500.0,0.00025753,7]
[344342640,1733356246523,-500.0,0.00025753,7]
[344342641,1733356246532,-500.0,0.00025753,7]
[344342642,1733356246541,-196.54,0.00025753,7]
[344342643,1733356246557,-500.0,0.00025753,7]
[344342644,1733356246566,-500.0,0.00025753,7]
[344342645,1733356246576,-1067.46,0.00025753,7]
[344342646,1733356246585,-500.0,0.00025753,7]
[344342647,1733356246594,-500.0,0.00025753,7]
[344342648,1733356246604,-500.0,0.00025753,7]
[344342649,1733356246617,-500.0,0.00025753,7]
[344342650,1733356246626,-621.86,0.00025753,7]
[344342651,1733356246636,-500.0,0.00025753,7]
[344342652,1733356246645,-460.21344416,0.00025753,7]
[344342653,1733356246655,-500.0,0.00025753,7]
[344342654,1733356246665,-668.49,0.00025753,7]
[344342655,1733356246674,-500.0,0.00025753,7]
[344342656,1733356246683,-10260.18,0.00025753,7]
[344342657,1733356246694,-500.0,0.00025753,7]
[344342658,1733356246703,-500.0,0.00025753,7]
[344342659,1733356246712,-500.0,0.00025753,7]
[344342660,1733356246722,-500.0,0.00025753,7]
[344342661,1733356246731,-307.54876747,0.00025753,7]
[344342662,1733356246741,-500.0,0.00025753,7]
[344342663,1733356246750,-4300.83,0.00025753,7]
[344342664,1733356246760,-500.0,0.00025753,7]
[344342665,1733356246769,-500.0,0.00025753,7]
[344342666,1733356246781,-2154.79,0.00025753,7]
[344342667,1733356246790,-500.0,0.00025753,7]
[344342668,1733356246804,-1790.89,0.00025753,7]
[344342669,1733356246814,-500.0,0.00025753,7]
[344342670,1733356246823,-500.0,0.00025753,7]
[344342671,1733356246832,-500.0,0.00025753,7]
[344342672,1733356246842,-642.15678459,0.00025753,7]
[344342673,1733356246851,-500.0,0.00025753,7]
[344342674,1733356246863,-500.0,0.00025753,7]
[344342675,1733356246875,-500.0,0.00025753,7]
[344342676,1733356246885,-500.0,0.00025753,7]
[344342677,1733356246895,-500.0,0.00025753,7]
[344342678,1733356246908,-500.0,0.00025753,7]
[344342679,1733356246918,-500.0,0.00025753,7]
[344342680,1733356246927,-500.0,0.00025753,7]
[344342681,1733356246936,-500.0,0.00025753,7]
[344342682,1733356246945,-556.41,0.00025753,7]
[344342683,1733356246955,-500.0,0.00025753,7]
[344342684,1733356246964,-500.0,0.00025753,7]
[344342685,1733356246974,-500.0,0.00025753,7]
[344342686,1733356246983,-500.0,0.00025753,7]
[344342687,1733356246993,-500.0,0.00025753,7]
[344342688,1733356247002,-500.0,0.00025753,7]
[344342689,1733356247012,-686.09,0.00025753,7]
[344342690,1733356247022,-500.0,0.00025753,7]
[344342691,1733356247035,-500.0,0.00025753,7]
[344342692,1733356247049,-500.0,0.00025753,7]
[344342693,1733356247063,-500.0,0.00025753,7]
[344342694,1733356247073,-591.42,0.00025753,7]
[344342695,1733356247083,-953.88,0.00025753,7]
[344342696,1733356247092,-1152.98,0.00025753,7]
[344342697,1733356247103,-508.38575874,0.00025753,7]
[344342698,1733356247114,-500.0,0.00025753,7]
[344342699,1733356247125,-500.0,0.00025753,7]
[344342700,1733356247134,-500.0,0.00025753,7]
[344342701,1733356247144,-535.73,0.00025753,7]
[344342702,1733356247154,-1937.49,0.00025753,7]
[344342703,1733356247163,-500.0,0.00025753,7]
[344342704,1733356247172,-679.76,0.00025753,7]
[344342705,1733356247181,-500.0,0.00025753,7]
[344342706,1733356247191,-500.0,0.00025753,7]
[344342707,1733356247202,-500.0,0.00025753,7]
[344342708,1733356247211,-500.0,0.00025753,7]
[344342709,1733356247221,-564.29,0.00025753,7]
[344342710,1733356247231,-500.0,0.00025753,7]
[344342711,1733356247240,-500.0,0.00025753,7]
[344342712,1733356247251,-2317.42,0.00025753,7]
[344342713,1733356247260,-173.73959194,0.00025753,7]
[344342714,1733356247371,-1006.53,0.00025753,7]
[344342715,1733356247394,-568.45,0.00025753,7]
[344342716,1733356247404,-655.92,0.00025753,7]
[344342717,1733356247414,-599.36,0.00025753,7]
[344342718,1733356247424,-1371.72,0.00025753,7]
[344342719,1733356247434,-500.0,0.00025753,7]
[344342720,1733356247444,-1426.92,0.00025753,7]
[344342721,1733356247454,-963.92,0.00025753,7]
[344342722,1733356247464,-648.01,0.00025753,7]
[344342723,1733356247474,-377.98,0.00025753,7]
[344342724,1733356247484,-500.0,0.00025753,7]
[344342725,1733356247493,-500.0,0.00025753,7]
[344342726,1733356247503,-150.711,0.00025833,2]
[344342727,1733356247513,-532.0,0.00025833,2]
[344342728,1733356247523,-2375.0,0.00025833,2]
[344342729,1733356247533,-2170.0,0.00025833,2]
[344342730,1733356247543,-2978.567,0.00025833,2]
[344342731,1733356247555,-150.0,0.00025833,2]
[344342732,1733356247564,-150.0,0.00025833,2]
[344342733,1733356247574,-150.0,0.00025833,2]
[344342734,1733356247584,-300.0,0.0002589,2]
[344342735,1733356247593,-155.00533784,0.00025933,2]
[344342736,1733356247603,-160.0,0.00025965,3]
[344342737,1733356247615,-737.0,0.00025999,15]
[344342738,1733356247626,-160.0,0.00026026,2]
[344342739,1733356247635,-500.0,0.00026027,2]
[344342740,1733356247646,-500.0,0.00026027,7]
[344342741,1733356247656,-500.0,0.00026027,7]
[344342742,1733356247666,-500.0,0.00026027,7]
[344342743,1733356247676,-500.0,0.00026027,7]
[344342744,1733356247686,-500.0,0.00026027,7]
[344342745,1733356247697,-500.0,0.00026027,7]
[344342746,1733356247706,-500.0,0.00026027,7]
[344342747,1733356247716,-500.0,0.00026027,7]
[344342748,1733356247727,-477.85854793,0.00026027,7]
[344342749,1733356247737,-500.0,0.00026027,7]
[344342750,1733356247747,-500.0,0.00026027,7]
[344342751,1733356247756,-500.0,0.00026027,7]
[344342752,1733356247766,-505.50948391,0.00026027,7]
[344342753,1733356247775,-500.0,0.00026027,7]
[344342754,1733356247785,-500.0,0.00026027,7]
[344342755,1733356247794,-500.0,0.00026027,7]
[344342756,1733356247805,-500.0,0.00026027,7]
[344342757,1733356247814,-500.0,0.00026027,7]
[344342758,1733356247824,-292.40454998,0.00026027,7]
[344342759,1733356247833,-500.0,0.00026027,7]
[344342760,1733356247843,-500.0,0.00026027,7]
[344342761,1733356247853,-500.0,0.00026027,7]
[344342762,1733356247862,-718.25,0.00026027,7]
[344342763,1733356247872,-500.0,0.00026027,7]
[344342764,1733356247882,-500.0,0.00026027,7]
[344342765,1733356247892,-500.0,0.00026027,7]
[344342766,1733356247902,-500.0,0.00026027,7]
[344342767,1733356247914,-500.0,0.00026027,7]
[344342768,1733356247925,-500.0,0.00026027,7]
[344342769,1733356247935,-503.65,0.00026027,7]
[344342770,1733356247944,-500.0,0.00026027,7]
[344342771,1733356247954,-469.6351887,0.00026027,7]
[344342772,1733356247965,-500.0,0.00026027,7]
[344342773,1733356247974,-500.0,0.00026027,7]
[344342774,1733356247984,-509.91878066,0.00026027,7]
[344342775,1733356247996,-500.0,0.00026027,7]
[344342776,1733356248006,-500.0,0.00026027,7]
[344342777,1733356248016,-500.0,0.00026027,7]
[344342778,1733356248026,-500.0,0.00026027,7]
[344342779,1733356248036,-500.0,0.00026027,7]
[344342780,1733356248048,-500.0,0.00026027,7]
[344342781,1733356248059,-522.4,0.00026027,7]
[344342782,1733356248070,-512.45196482,0.00026027,7]
[344342783,1733356248081,-500.0,0.00026027,7]
[344342784,1733356248092,-500.0,0.00026027,7]
[344342785,1733356248103,-500.0,0.00026027,7]
[344342786,1733356248113,-500.0,0.00026027,7]
[344342787,1733356248123,-1067.46,0.00026027,7]
[344342788,1733356248133,-500.0,0.00026027,7]
[344342789,1733356248143,-500.0,0.00026027,7]
[344342790,1733356248153,-500.0,0.00026027,7]
[344342791,1733356248163,-500.0,0.00026027,7]
[344342792,1733356248173,-621.86,0.00026027,7]
[344342793,1733356248183,-500.0,0.00026027,7]
[344342794,1733356248194,-500.0,0.00026027,7]
[344342795,1733356248204,-668.49,0.00026027,7]
[344342796,1733356248213,-500.0,0.00026027,7]
[344342797,1733356248223,-10260.18,0.00026027,7]
[344342798,1733356248232,-571.6661316,0.00026027,7]
[344342799,1733356248242,-500.0,0.00026027,7]
[344342800,1733356248252,-500.0,0.00026027,7]
[344342801,1733356248262,-571.56,0.00026027,7]
[344342802,1733356248272,-500.0,0.00026027,7]
[344342803,1733356248283,-4300.83,0.00026027,7]
[344342804,1733356248293,-500.0,0.00026027,7]
[344342805,1733356248309,-500.0,0.00026027,7]
[344342806,1733356248319,-2154.79,0.00026027,7]
[344342807,1733356248330,-500.0,0.00026027,7]
[344342808,1733356248339,-1790.89,0.00026027,7]
[344342809,1733356248349,-500.0,0.00026027,7]
[344342810,1733356248359,-500.0,0.00026027,7]
[344342811,1733356248369,-500.0,0.00026027,7]
[344342812,1733356248378,-500.0,0.00026027,7]
[344342813,1733356248389,-500.0,0.00026027,7]
[344342814,1733356248400,-153.89,0.00026027,7]
[344342815,1733356248410,-500.0,0.00026027,7]
[344342816,1733356248421,-500.0,0.00026027,7]
[344342817,1733356248431,-500.0,0.00026027,7]
[344342818,1733356248441,-500.0,0.00026027,7]
[344342819,1733356248451,-556.41,0.00026027,7]
[344342820,1733356248461,-500.0,0.00026027,7]
[344342821,1733356248472,-500.0,0.00026027,7]
[344342822,1733356248482,-500.0,0.00026027,7]
[344342823,1733356248492,-500.0,0.00026027,7]
[344342824,1733356248503,-523.19,0.00026027,7]
[344342825,1733356248513,-686.09,0.00026027,7]
[344342826,1733356248524,-506.22303777,0.00026027,7]
[344342827,1733356248534,-500.0,0.00026027,7]
[344342828,1733356248545,-500.0,0.00026027,7]
[344342829,1733356248558,-500.0,0.00026027,7]
[344342830,1733356248568,-953.88,0.00026027,7]
[344342831,1733356248578,-1152.98,0.00026027,7]
[344342832,1733356248588,-504.58089983,0.00026027,7]
[344342833,1733356248598,-338.27212839,0.00026027,7]
[344342834,1733356248608,-500.0,0.00026027,7]
[344342835,1733356248620,-535.73,0.00026027,7]
[344342836,1733356248630,-1937.49,0.00026027,7]
[344342837,1733356248640,-500.0,0.00026027,7]
[344342838,1733356248650,-679.76,0.00026027,7]
[344342839,1733356248662,-500.0,0.00026027,7]
[344342840,1733356248673,-517.75113017,0.00026027,7]
[344342841,1733356248683,-500.0,0.00026027,7]
[344342842,1733356248695,-564.29,0.00026027,7]
[344342843,1733356248705,-500.0,0.00026027,7]
[344342844,1733356248715,-229.23,0.00026027,7]
[344342845,1733356248724,-2317.42,0.00026027,7]
[344342846,1733356248733,-1006.53,0.00026027,7]
[344342847,1733356248743,-568.45,0.00026027,7]
[344342848,1733356248753,-655.92,0.00026027,7]
[344342849,1733356248763,-599.36,0.00026027,7]
[344342850,1733356248773,-1371.72,0.00026027,7]
[344342851,1733356248783,-500.0,0.00026027,7]
[344342852,1733356248792,-1426.92,0.00026027,7]
[344342853,1733356248807,-963.92,0.00026027,7]
[344342854,1733356248817,-648.01,0.00026027,7]
[344342855,1733356248827,-500.0,0.00026027,7]
[344342856,1733356248836,-618.49699567,0.00026027,7]
[344342857,1733356248846,-207.4,0.00026174,4]
[344342858,1733356248856,-212.226184,0.00026177,2]
[344342859,1733356248867,-1563.1214559,0.00026212,2]
[344342860,1733356248877,-507.14478991,0.00026301,2]
[344342861,1733356248887,-500.0,0.00026301,7]
[344342862,1733356248898,-500.0,0.00026301,7]
[344342863,1733356248908,-500.0,0.00026301,7]
[344342864,1733356248918,-500.0,0.00026301,7]
[344342865,1733356248928,-500.0,0.00026301,7]
[344342866,1733356248938,-500.0,0.00026301,7]
[344342867,1733356248949,-500.0,0.00026301,7]
[344342868,1733356248958,-500.0,0.00026301,7]
[344342869,1733356248969,-500.0,0.00026301,7]
[344342870,1733356248979,-500.0,0.00026301,7]
[344342871,1733356248989,-500.0,0.00026301,7]
[344342872,1733356248999,-500.0,0.00026301,7]
[344342873,1733356249009,-500.0,0.00026301,7]
[344342874,1733356249020,-500.0,0.00026301,7]
[344342875,1733356249029,-500.0,0.00026301,7]
[344342876,1733356249039,-500.0,0.00026301,7]
[344342877,1733356249051,-718.25,0.00026301,7]
[344342878,1733356249061,-500.0,0.00026301,7]
[344342879,1733356249070,-500.0,0.00026301,7]
[344342880,1733356249080,-500.0,0.00026301,7]
[344342881,1733356249089,-500.0,0.00026301,7]
[344342882,1733356249099,-500.0,0.00026301,7]
[344342883,1733356249108,-500.0,0.00026301,7]
[344342884,1733356249118,-503.65,0.00026301,7]
[344342885,1733356249128,-500.0,0.00026301,7]
[344342886,1733356249138,-500.0,0.00026301,7]
[344342887,1733356249148,-500.0,0.00026301,7]
[344342888,1733356249158,-500.0,0.00026301,7]
[344342889,1733356249167,-500.0,0.00026301,7]
[344342890,1733356249178,-509.55556946,0.00026301,7]
[344342891,1733356249196,-500.0,0.00026301,7]
[344342892,1733356249206,-151.0,0.00026301,7]
[344342893,1733356249215,-500.0,0.00026301,7]
[344342894,1733356249225,-459.885355,0.00026301,7]
[344342895,1733356249235,-459.885355,0.00026301,7]
[344342896,1733356249244,-500.0,0.00026301,7]
[344342897,1733356249253,-151.0,0.00026301,7]
[344342898,1733356249264,-151.0,0.00026301,7]
[344342899,1733356249273,-500.0,0.00026301,7]
[344342900,1733356249283,-500.0,0.00026301,7]
[344342901,1733356249293,-500.0,0.00026301,7]
[344342902,1733356249305,-503.14415575,0.00026301,7]
[344342903,1733356249314,-1067.46,0.00026301,7]
[344342904,1733356249323,-198.01,0.00026301,7]
[344342905,1733356249332,-500.0,0.00026301,7]
[344342906,1733356249342,-500.0,0.00026301,7]
[344342907,1733356249351,-500.0,0.00026301,7]
[344342908,1733356249361,-621.86,0.00026301,7]
[344342909,1733356249371,-500.0,0.00026301,7]
[344342910,1733356249380,-1582.883204,0.00026301,7]
[344342911,1733356249390,-1582.883204,0.00026301,7]
[344342912,1733356249400,-668.49,0.00026301,7]
[344342913,1733356249410,-613.162694,0.00026301,7]
[344342914,1733356249419,-500.0,0.00026301,7]
[344342915,1733356249428,-613.162694,0.00026301,7]
[344342916,1733356249438,-257.949239,0.00026301,7]
[344342917,1733356249448,-257.949239,0.00026301,7]
[344342918,1733356249457,-10260.18,0.00026301,7]
[344342919,1733356249467,-500.0,0.00026301,7]
[344342920,1733356249477,-278.79766585,0.00026301,7]
[344342921,1733356249487,-412.20578134,0.00026301,7]
[344342922,1733356249498,-4300.83,0.00026301,7]
[344342923,1733356249508,-500.0,0.00026301,7]
[344342924,1733356249518,-500.0,0.00026301,7]
[344342925,1733356249528,-2154.79,0.00026301,7]
[344342926,1733356249539,-500.0,0.00026301,7]
[344342927,1733356249551,-1790.89,0.00026301,7]
[344342928,1733356249666,-500.0,0.00026301,7]
[344342929,1733356249679,-500.0,0.00026301,7]
[344342930,1733356249692,-500.0,0.00026301,7]
[344342931,1733356249704,-500.0,0.00026301,7]
[344342932,1733356249714,-500.0,0.00026301,7]
[344342933,1733356249726,-619.76,0.00026301,7]
[344342934,1733356249735,-500.0,0.00026301,7]
[344342935,1733356249745,-500.0,0.00026301,7]
[344342936,1733356249755,-556.41,0.00026301,7]
[344342937,1733356249765,-500.0,0.00026301,7]
[344342938,1733356249775,-500.0,0.00026301,7]
[344342939,1733356249785,-500.0,0.00026301,7]
[344342940,1733356249795,-686.09,0.00026301,7]
[344342941,1733356249811,-500.0,0.00026301,7]
[344342942,1733356249822,-174.47,0.00026301,7]
[344342943,1733356249838,-500.0,0.00026301,7]
[344342944,1733356249848,-953.88,0.00026301,7]
[344342945,1733356249858,-1152.98,0.00026301,7]
[344342946,1733356249868,-151.0,0.00026301,7]
[344342947,1733356249878,-500.0,0.00026301,7]
[344342948,1733356249887,-151.0,0.00026301,7]
[344342949,1733356249897,-535.73,0.00026301,7]
[344342950,1733356249907,-1937.49,0.00026301,7]
[344342951,1733356249916,-500.0,0.00026301,7]
[344342952,1733356249926,-679.76,0.00026301,7]
[344342953,1733356249939,-500.0,0.00026301,7]
[344342954,1733356249949,-500.0,0.00026301,7]
[344342955,1733356249959,-564.29,0.00026301,7]
[344342956,1733356249969,-500.0,0.00026301,7]
[344342957,1733356249979,-2317.42,0.00026301,7]
[344342958,1733356249989,-1006.53,0.00026301,7]
[344342959,1733356249998,-568.45,0.00026301,7]
[344342960,1733356250007,-655.92,0.00026301,7]
[344342961,1733356250016,-599.36,0.00026301,7]
[344342962,1733356250026,-1371.72,0.00026301,7]
[344342963,1733356250035,-500.0,0.00026301,7]
[344342964,1733356250044,-1426.92,0.00026301,7]
[344342965,1733356250065,-963.92,0.00026301,7]
[344342966,1733356250075,-648.01,0.00026301,7]
[344342967,1733356250085,-500.0,0.00026301,7]
[344342968,1733356250095,-660.0,0.00026384,2]
[344342969,1733356250104,-150.01,0.00026399,2]
[344342970,1733356250114,-2497.5508137,0.00026399,2]
[344342971,1733356250123,-554607.94897393,0.000264,7]
[344342972,1733356250133,-1014.04,0.000264,14]
[344342973,1733356250143,-10652.93,0.000264,2]
[344342974,1733356250152,-150.08,0.000264,2]
[344342975,1733356250161,-151.0,0.000264,7]
[344342976,1733356250171,-151.0,0.000264,7]
[344342977,1733356250180,-151.0,0.000264,7]
[344342978,1733356250189,-151.0,0.000264,7]
[344342979,1733356250199,-153.744111,0.000264,7]
[344342980,1733356250208,-151.0,0.000264,7]
[344342981,1733356250217,-285.553956,0.000264,7]
[344342982,1733356250227,-160.208024,0.000264,7]
[344342983,1733356250236,-160.208024,0.000264,7]
[344342984,1733356250245,-151.0,0.000264,7]
[344342985,1733356250254,-151.0,0.000264,7]
[344342986,1733356250263,-459.885355,0.000264,7]
[344342987,1733356250273,-459.885355,0.000264,7]
[344342988,1733356250282,-151.0,0.000264,7]
[344342989,1733356250292,-151.0,0.000264,7]
[344342990,1733356250309,-1582.883204,0.000264,7]
[344342991,1733356250322,-1582.883204,0.000264,7]
[344342992,1733356250331,-613.162694,0.000264,7]
[344342993,1733356250340,-151.0,0.000264,7]
[344342994,1733356250350,-613.162694,0.000264,7]
[344342995,1733356250359,-151.0,0.000264,7]
[344342996,1733356250368,-257.949239,0.000264,7]
[344342997,1733356250377,-257.949239,0.000264,7]
[344342998,1733356250387,-151.0,0.000264,7]
[344342999,1733356250395,-151.0,0.000264,7]
[344343000,1733356250404,-151.0,0.000264,7]
[344343001,1733356250414,-151.0,0.000264,7]
[344343002,1733356250424,-151.0,0.000264,7]
[344343003,1733356250433,-151.793289,0.000264,7]
[344343004,1733356250442,-151.0,0.000264,7]
[344343005,1733356250451,-151.0,0.000264,7]
[344343006,1733356250460,-164.382574,0.000264,7]
[344343007,1733356250470,-446.68,0.00026439,2]
[344343008,1733356250480,-475761.16,0.000265,7]
[344343009,1733356250490,-2000.0,0.000265,2]
[344343010,1733356250499,-2000.0,0.000265,2]
[344343011,1733356250509,-151.0,0.000265,7]
[344343012,1733356250523,-160.208024,0.000265,7]
[344343013,1733356250533,-160.208024,0.000265,7]
[344343014,1733356250542,-151.0,0.000265,7]
[344343015,1733356250555,-150.0,0.000265,2]
[344343016,1733356250565,-5804.54938182,0.000265,2]
[344343017,1733356250574,-1000.0,0.00026513,2]
[344343018,1733356250583,-699.86532453,0.00026522,2]
[344343019,1733356250593,-1000.0,0.00026567,2]
[344343020,1733356250602,-1000.0,0.00026568,2]
[344343021,1733356250614,-500.0,0.00026575,7]
[344343022,1733356250624,-500.0,0.00026575,7]
[344343023,1733356250633,-500.0,0.00026575,7]
[344343024,1733356250642,-500.0,0.00026575,7]
[344343025,1733356250653,-500.0,0.00026575,7]
[344343026,1733356250662,-500.0,0.00026575,7]
[344343027,1733356250671,-500.0,0.00026575,7]
[344343028,1733356250680,-500.0,0.00026575,7]
[344343029,1733356250690,-500.0,0.00026575,7]
[344343030,1733356250700,-538.6215155,0.00026575,7]
[344343031,1733356250710,-500.0,0.00026575,7]
[344343032,1733356250719,-500.0,0.00026575,7]
[344343033,1733356250728,-500.0,0.00026575,7]
[344343034,1733356250738,-500.0,0.00026575,7]
[344343035,1733356250747,-500.0,0.00026575,7]
[344343036,1733356250756,-500.0,0.00026575,7]
[344343037,1733356250766,-718.25,0.00026575,7]
[344343038,1733356250775,-500.0,0.00026575,7]
[344343039,1733356250785,-500.0,0.00026575,7]
[344343040,1733356250795,-500.0,0.00026575,7]
[344343041,1733356250808,-500.0,0.00026575,7]
[344343042,1733356250817,-500.0,0.00026575,7]
[344343043,1733356250827,-572.72,0.00026575,7]
[344343044,1733356250836,-503.65,0.00026575,7]
[344343045,1733356250846,-159.17697718,0.00026575,7]
[344343046,1733356250856,-500.0,0.00026575,7]
[344343047,1733356250865,-500.0,0.00026575,7]
[344343048,1733356250875,-192.0,0.00026575,7]
[344343049,1733356250884,-500.0,0.00026575,7]
[344343050,1733356250893,-500.0,0.00026575,7]
[344343051,1733356250903,-459.885355,0.00026575,7]
[344343052,1733356250913,-459.885355,0.00026575,7]
[344343053,1733356250922,-500.0,0.00026575,7]
[344343054,1733356250932,-151.0,0.00026575,7]
[344343055,1733356250942,-203.719176,0.00026575,7]
[344343056,1733356250951,-500.0,0.00026575,7]
[344343057,1733356250961,-500.0,0.00026575,7]
[344343058,1733356250971,-175.11873136,0.00026575,7]
[344343059,1733356250980,-500.0,0.00026575,7]
[344343060,1733356250990,-500.0,0.00026575,7]
[344343061,1733356251000,-197.98328405,0.00026575,7]
[344343062,1733356251009,-1067.46,0.00026575,7]
[344343063,1733356251018,-150.69573666,0.00026575,7]
[344343064,1733356251028,-150.15,0.00026575,7]
[344343065,1733356251037,-500.0,0.00026575,7]
[344343066,1733356251050,-500.0,0.00026575,7]
[344343067,1733356251059,-168.95,0.00026575,7]
[344343068,1733356251068,-621.86,0.00026575,7]
[344343069,1733356251078,-220.46442603,0.00026575,7]
[344343070,1733356251087,-1582.883204,0.00026575,7]
[344343071,1733356251096,-1582.883204,0.00026575,7]
[344343072,1733356251106,-668.49,0.00026575,7]
[344343073,1733356251115,-613.162694,0.00026575,7]
[344343074,1733356251124,-151.0,0.00026575,7]
[344343075,1733356251134,-500.0,0.00026575,7]
[344343076,1733356251143,-613.162694,0.00026575,7]
[344343077,1733356251153,-151.0,0.00026575,7]
[344343078,1733356251162,-257.949239,0.00026575,7]
[344343079,1733356251171,-257.949239,0.00026575,7]
[344343080,1733356251181,-10260.18,0.00026575,7]
[344343081,1733356251190,-151.0,0.00026575,7]
[344343082,1733356251199,-500.0,0.00026575,7]
[344343083,1733356251208,-500.0,0.00026575,7]
[344343084,1733356251218,-150.15,0.00026575,2]
[344343085,1733356251227,-500.0,0.00026575,7]
[344343086,1733356251237,-500.0,0.00026575,7]
[344343087,1733356251246,-4300.83,0.00026575,7]
[344343088,1733356251255,-292.7,0.00026575,7]
[344343089,1733356251264,-564.17,0.00026575,7]
[344343090,1733356251273,-2154.79,0.00026575,7]
[344343091,1733356251283,-500.0,0.00026575,7]
[344343092,1733356251292,-1790.89,0.00026575,7]
[344343093,1733356251306,-500.0,0.00026575,7]
[344343094,1733356251316,-500.0,0.00026575,7]
[344343095,1733356251325,-500.0,0.00026575,7]
[344343096,1733356251335,-500.0,0.00026575,7]
[344343097,1733356251344,-261.08414852,0.00026575,7]